Cogmind - Beta 13 @@@ ROGUE MODE // 2024.04.07 @ 02:33:48 Player: Eschess Result: Destroyed self with Rocket Launcher Performance ------------- Evolutions (1) 500 Regions Visited (2) 400 Robots Destroyed (23) 115 Value Destroyed (506) 506 Prototype IDs (3) 60 Alien Tech Used (0) 0 Bonus (200) 200 TOTAL SCORE: 1781 Bonus ------- Pacifist 200 Cogmind --------- Core Integrity 0/400 Matter 241/300 Energy 100/100 System Corruption 5% Temperature Cool (0) Movement Treading (480) Ox4 Location -9/Materials Parts ------- > --- POWER (2) -------- (None) > --- PROPULSION (2) --- Light Treads > --- UTILITY (2) ------ Huge Storage Unit > --- WEAPON (3) ------- Rocket Launcher > --- INVENTORY (25) --- Improved Ion Engine Light Treads High-capacity Matter Pod (200) Peak State ------------ > --- POWER ------------ Ion Engine Light Ion Engine > --- PROPULSION ------- Wheel Wheel > --- UTILITY ---------- Small Storage Unit Light Armor Plating > --- WEAPON ----------- Advanced Beam Cannon Light Assault Rifle Hammer > --- INVENTORY -------- Light Treads Light Treads Light Treads Wheel High-capacity Matter Pod Weapon Shielding Backup Plating I [Rating: 11] Favorites ----------- Power Ion Engine Engine Ion Engine Propulsion Wheel Treads Light Treads Wheel Wheel Utility Small Storage Unit Device Seismic Detector Storage Small Storage Unit Protection Light Armor Plating Weapon Light Assault Rifle Energy Gun Small Laser Energy Cannon Light EM Pulse Cannon Ballistic Gun Light Assault Rifle Launcher Rocket Launcher Impact Weapon Hammer Build | -11 -10 -9 ------- Run | Yrd Mat Mat Slots Evolved 2 | . . 2 Power 1 | . . 1 Propulsion . | . . . Utility . | . . . Weapon 1 | . . 1 Parts Attached 26 | 7 1 18 Power 4 | 1 . 3 Engine 4 | 1 . 3 Core . | . . . Reactor . | . . . Propulsion 6 | 2 . 4 Treads 3 | . . 3 Leg . | . . . Wheel 3 | 2 . 1 Hover . | . . . Flight . | . . . Utility 6 | 1 1 4 Device 1 | . . 1 Storage 2 | 1 . 1 Processor . | . . . Hackware . | . . . Protection 3 | . 1 2 Artifact . | . . . Weapon 10 | 3 . 7 Energy Gun 4 | 1 . 3 Energy Cannon 2 | . . 2 Ballistic Gun 2 | 2 . . Ballistic Cannon . | . . . Launcher 1 | . . 1 Special Weapon . | . . . Impact Weapon 1 | . . 1 Slashing Weapon . | . . . Piercing Weapon . | . . . Special Melee Weapon . | . . . Unidentified Prototypes 1 | . . 1 Parts Lost 16 | . . 16 Power 4 | . . 4 Propulsion 5 | . . 5 Utility 3 | . . 3 Weapon 4 | . . 4 Highest Loss Streak 7 | . . 7 To Critical Strikes . | . . . Average Slot Usage (%) 88 | . 98 86 Engine 19 | . 14 20 Treads 2 | . . 3 Wheel 18 | . 28 16 Device 4 | . . 5 Storage 11 | . 14 11 Protection 5 | . 12 4 Energy Gun 3 | . . 3 Energy Cannon 2 | . . 2 Ballistic Gun 12 | . 28 9 Impact Weapon 7 | . . 8 Naked Turns . | . . . Heaviest Build 96 | 13 16 96 Greatest Support 40 | 20 20 40 Greatest Overweight (x) 26 | 1 . 26 Average Overweight (x) 1 | . . 1 Largest Inventory Capacity 25 | 8 8 25 Average Capacity 16 | 7 8 18 Most Carried 9 | 8 8 9 Average Carried 7 | 5 7 7 Final Capacity 25 | 8 8 25 Final Carried 8 | 6 8 3 Class Distribution -------------------- 95% | Mutant 4% | Scavenger-Mutant Dominant Class ---------------- Mutant | -10/Materials Mutant | -9/Materials Resources | -11 -10 -9 ----------- Run | Yrd Mat Mat Matter Collected 649 | 189 65 395 Remotely . | . . . Salvage Created 569 | . . 569 Parts 32 | . . 32 Haulers Intercepted . | . . . Recyclers Shooed . | . . . Parts Field Recycled . | . . . Retrieved Matter . | . . . Parts Self-Destructed . | . . . Prevented . | . . . Kills | -11 -10 -9 ------- Run | Yrd Mat Mat Combat Hostiles Destroyed 17 | . . 17 Melee 2 | . . 2 Guns 8 | . . 8 Cannons 1 | . . 1 AOE 4 | . . 4 Classes Destroyed 6 | . . 6 Worker 2 | . . 2 Operator 1 | . . 1 Watcher 3 | . . 3 Swarmer 8 | . . 8 Grunt 5 | . . 5 Sentry 4 | . . 4 Best Kill Streak 7 | . . 7 Combat Bots Only 5 | . . 5 Max Kills in Single Turn 5 | . . 5 Gunslinging . | . . . Exploded 2 | . . 2 Melee 1 | . . 1 Uniques/NPCs Destroyed . | . . . Combat | -11 -10 -9 -------- Run | Yrd Mat Mat Hostile Shots Fired 199 | . 3 196 Missed 36 | . . 36 Damage Taken 1708 | . 34 1674 Core 414 | . . 414 Absorbed by Shields . | . . . Redirected to Shielding 51 | . . 51 Regen/Repaired (Parts) 10 | . . 10 Core Remaining (%) 100 | 100 100 . Volleys Fired 56 | . . 56 Largest 2 | . . 2 Hottest 80 | . . 80 Shots Fired 82 | . . 82 Gun 69 | . . 69 Cannon 9 | . . 9 Launcher 4 | . . 4 Special . | . . . Kinetic 28 | . . 28 Thermal 34 | . . 34 Explosive 4 | . . 4 Electromagnetic 16 | . . 16 Robot Hit Streak 8 | . . 8 Robot Miss Streak 4 | . . 4 Penetration Max . | . . . Secondary Targets . | . . . Shots Hit Robots 69 | . . 69 Core Hits 25 | . . 25 Critical Kills 1 | . . 1 Critical Parts Destroyed 2 | . . 2 Critical Strikes 3 | . . 3 Smash 3 | . . 3 Melee Attacks 24 | . . 24 Impact 24 | . . 24 Slashing . | . . . Piercing . | . . . Sneak Attacks . | . . . Combat Hostiles . | . . . Follow-up Attacks . | . . . Damage Inflicted 1346 | . . 1346 Guns 476 | . . 476 Cannons 125 | . . 125 Explosions 336 | . . 336 Melee 409 | . . 409 Ramming . | . . . Kinetic 155 | . . 155 Thermal 231 | . . 231 Explosive 336 | . . 336 Electromagnetic 215 | . . 215 Impact 409 | . . 409 Slashing . | . . . Piercing . | . . . Highest Corruption 5 | . . 5 Average Corruption 5 | . . 5 Corruption Purged . | . . . Corruption Blocked . | . . . Effects 19 | . . 19 Message Errors 5 | . . 5 Matter Fused 5 | . . 5 Heat Flow Errors 3 | . . 3 Energy Discharges 2 | . . 2 Parts Rejected 1 | . . 1 Parts Fused 1 | . . 1 Data Loss (minor) 2 | . . 2 Overload Shots . | . . . Overflow Damage 148 | . . 148 Projectiles 10 | . . 10 Explosions 50 | . . 50 Melee 88 | . . 88 Knockbacks 1 | . . 1 Impact 1 | . . 1 Kinetic . | . . . Secondary . | . . . Self-Inflicted Damage 152 | . . 152 Shots 4 | . . 4 Rammed . | . . . Targets Rammed . | . . . Kicked . | . . . Crushed . | . . . Highest Temperature 349 | . . 349 Average Temperature 96 | . . 96 Received Heat Transfer 405 | . 18 387 Effects 1 | . . 1 Shutdowns 1 | . . 1 Siege Activations . | . . . Robots Corrupted . | . . . Combat Hostiles . | . . . Parts Fried 10 | . . 10 Impact Corruptions 7 | . . 7 Robots Melted . | . . . Combat Hostiles . | . . . Parts Melted 1 | . . 1 Heat Transferred 525 | . . 525 Parts Sabotaged . | . . . Parts Stolen . | . . . Parts Stripped . | . . . Power Chain Reactions . | . . . Alert | -11 -10 -9 ------- Run | Yrd Mat Mat Peak Influence 294 | . 45 294 Initial 18 | . . 18 Average 94 | . 16 119 Maximum Alert Level 1 | . . 1 Low Security (%) 90 | 100 100 87 Level 1 9 | . . 12 Level 2 . | . . . Level 3 . | . . . Level 4 . | . . . Level 5 . | . . . High Security . | . . . Max Security . | . . . Squads Dispatched 5 | . 3 2 Investigation 2 | . 1 1 Extermination . | . . . Reinforcement 3 | . 2 1 Assault . | . . . Garrison . | . . . Intercept . | . . . Searches Triggered . | . . . Construction Impeded . | . . . Haulers Reinforced . | . . . Active Scanning Responses . | . . . Cargo Convoy Interrupts . | . . . Stealth | -11 -10 -9 --------- Run | Yrd Mat Mat Distress Signals 1 | . . 1 Communications Jammed . | . . . Distress Signals . | . . . Times Spotted 31 | . 4 27 Peak Tracking Total 6 | . 2 6 Tactical Retreats 3 | . . 3 Traps | -11 -10 -9 ------- Run | Yrd Mat Mat Traps Triggered 2 | . 1 1 Indirectly . | . . . Trap Hack Attempts . | . . . Triggered . | . . . Disarmed . | . . . Reprogrammed . | . . . Reused . | . . . Traps Extracted . | . . . Installed . | . . . Triggered . | . . . Machines | -11 -10 -9 ---------- Run | Yrd Mat Mat Machines Disabled 1 | . . 1 Max in Single Turn 1 | . . 1 Machines Repaired . | . . . Machines Dismantled . | . . . Machines Sabotaged . | . . . Overloaded Fab Kills . | . . . Hacking | -11 -10 -9 --------- Run | Yrd Mat Mat Machines Accessed 8 | . 1 7 Terminals 6 | . 1 5 Fabricators . | . . . Repair Stations 1 | . . 1 Recycling Units . | . . . Scanalyzers 1 | . . 1 Garrison Access . | . . . Total Hacks 35 | . 2 33 Successful 27 | . 1 26 Failed 8 | . 1 7 Catastrophic 1 | . 1 . Database Lockouts . | . . . Manual . | . . . Terminals 21 | . 2 19 Fabricators . | . . . Repair Stations 7 | . . 7 Recycling Units . | . . . Scanalyzers 7 | . . 7 Garrison Access . | . . . Terminal Hacks 15 | . 1 14 Record 3 | . . 3 Prototype ID Bank 1 | . . 1 Emergency Access Points 3 | . . 3 Alert Level 1 | . . 1 Unreport Threat 1 | . . 1 Locate Traps 1 | . . 1 Dispatch Records 1 | . . 1 Maintenance Status 1 | . . 1 Surveillance Status 1 | . . 1 Investigation Status 1 | . 1 . Registered Components 1 | . . 1 Fabricator Hacks . | . . . Repair Station Hacks 6 | . . 6 Scan Component 3 | . . 3 Repair 2 | . . 2 Refit 1 | . . 1 Recycling Unit Hacks . | . . . Scanalyzer 6 | . . 6 Insert Component 3 | . . 3 Analyze 3 | . . 3 Garrison Access Hacks . | . . . Unauthorized Hacks . | . . . Terminals . | . . . Fabricators . | . . . Repair Stations . | . . . Recycling Units . | . . . Scanalyzers . | . . . Garrison Access . | . . . Data Cores Recovered . | . . . Used . | . . . Hacking Detections 8 | . 1 7 Full Trace Events . | . . . Feedback Events . | . . . Feedback Blocked . | . . . Robot Schematics Acquired . | . . . Robots Built . | . . . Authchips . | . . . Time . | . . . Total Robot Build Rating . | . . . Part Schematics Acquired 3 | . . 3 Parts Built . | . . . Authchips . | . . . Time . | . . . Total Part Build Rating . | . . . Parts Repaired 2 | . . 2 Time 52 | . . 52 Parts Recycled . | . . . Recycled Matter . | . . . Retrieved Matter . | . . . Retrieved Components . | . . . Parts Scanalyzed 3 | . . 3 Part Schematics Acquired 3 | . . 3 Parts Damaged . | . . . Bothacking | -11 -10 -9 ------------ Run | Yrd Mat Mat Used RIF Installer . | . . . Robots Hacked . | . . . Non-combat . | . . . Combat . | . . . Robot Hacks Applied . | . . . Relay Couplers Released . | . . . Fabnet Peak Effective % . | . . . Robots Rewired . | . . . Allies Hacked . | . . . Hacks Repelled . | . . . Allies | -11 -10 -9 -------- Run | Yrd Mat Mat Total Allies . | . . . Largest Group . | . . . Highest-Rated Group . | . . . Highest-Rated Ally . | . . . Total Orders . | . . . Ally Attacks . | . . . Total Damage . | . . . Kills . | . . . Allies Corrupted . | . . . Allies Melted . | . . . Intel | -11 -10 -9 ------- Run | Yrd Mat Mat Robot Analysis Total . | . . . Derelict Logs Recovered . | . . . Drone Launches . | . . . Drone Recoveries . | . . . Exploration | -11 -10 -9 ------------- Run | Yrd Mat Mat Turns Passed 1010 | 67 170 773 Spaces Moved 665 | 56 174 435 Core 20 | 19 . 1 Treads 16 | . . 16 Legs . | . . . Wheels 629 | 37 174 418 Hover . | . . . Flight . | . . . Fastest Speed 50 | 50 80 80 Average Speed 105 | 85 80 118 Slowest Speed 1350 | 100 80 1350 Overloaded Moves . | . . . Propulsion Burnouts . | . . . Robots Hopped . | . . . Cave-ins Triggered . | . . . Exploration Rate (%) 28 | 4 38 43 Regions Visited 2 Branch Regions . Pre-discovered Areas . | . . . Known Exits Taken . | . . . Unknown Exits Taken 2 | 1 1 . Scrap Searched . | . . . Spaces Dug . | . . . Terrain Destroyed 15 | . . 15 Melee . | . . . Projectile . | . . . AOE 15 | . . 15 Terrain Rammed . | . . . Walls Destroyed . | . . . Machines Disabled . | . . . Actions | -11 -10 -9 --------- Run | Yrd Mat Mat Total 861 | 75 205 581 Wait 51 | . 24 27 Move 663 | 55 173 435 Hop . | . . . Pick Up 31 | 12 5 14 Fast Attach . | . . . Attach 25 | 7 1 17 Detach 3 | 1 . 2 Swap 1 | . . 1 Drop 7 | . 2 5 Fire 56 | . . 56 Melee 24 | . . 24 Ram . | . . . Kick . | . . . Crush . | . . . Escape Stasis . | . . . Rewire . | . . . Trap . | . . . Miscellaneous . | . . . Route ------- -11/Scrapyard -10/Materials -9/Materials (discovered 1 exit: [*Min]) History --------- Turn | Location | Event 19 | -11/Scrapyard | Discovered new exit (range 16) 68 | -11/Scrapyard | Entered Materials 228 | -10/Materials | Discovered new exit (range 13) 238 | -10/Materials | Entered another Materials area 238 | -9/Materials | Evolved 2 slots: Power x1, Weapon x1 258 | -9/Materials | Repaired Lgt. Armor Plating 284 | -9/Materials | Repaired Assault Rifle? 302 | -9/Materials | Build established: Mutant 839 | -9/Materials | Discovered new exit (range 16) 930 | -9/Materials | Lost 7 parts (2p2n1u2w) 992 | -9/Materials | Core integrity fell below 50% 1003 | -9/Materials | Core integrity fell below 20% 1011 | -9/Materials | Destroyed self with Rocket Launcher Last Messages --------------- R-06 Scavenger collects Flight Unit. Lgt. Treads destroyed. Sml. Laser destroyed. KUYEZH1IA5KVCHEBCQY2H6Y6/K&C Acquired 7 matter. Lgt. Treads destroyed. K-01 Serf collects debris. [Achievement: Let's See Who's Tougher] S-10 Pest destroyed. K-01 Serf destroyed. Destroyed Flight Unit. S-10 Pest destroyed. K-01 Serf destroyed. W-16 Scout destroyed. R-06 Scavenger collects Sensor Array. Weapon Shielding destroyed. Destroyed Lgt. Ion Engine. S-10 Pest destroyed. R-06 Scavenger collects Hover Unit. Y-45 Defender destroyed. Map ----- +----------------------------------------------------+ | #######??????????????????????????????????????????? | | #??????????????????????????????????????????? | | "" ! #??????????????????????????????????????????? | | """ #???????????????? ??????????????????????? | | "" #???????????????? ??????????????????????? | | #???????????????? ??????????????????????? | | #???????????????? ??????????????????????? | | #######???????????????? ??????????????????????? | | # #???????????????? ??????????????????????? | | # #?????????##????"" ??????????????????????? | | + #?????????# """ ??????????????????????? | | #"" #?????????? """ % ??????????????????????? | | #"T #?????????? """ ??????????????????????? | | #"" #?????????? """ #??????????????????????? | | # #??????????? #??????????????????????? | | #######?????????# #??????????????????????? | | #####???????????+ [ """ #???########???????????? | | #???????????# """ #?? #???????????? | | "" #???????????+ """ #?? ! #???????????? | | "" #???????????# """ #? #???????????? | | "" #????????????## """ ## !!! ????????????? | | #???????????### !!! ""?????????????? | | "" #???????????#"" = !! T" ????????????? | | "" #???????????#"T "" #???????????? | | "" #???????????#"" =% ????????????? | | #???????????### " @ #???????????????????? | | #####???????????#"" " = ##???????????????????? | | #???????????????#"T " * #????????!??????????? | | #???????????????#"" %ar######## ????????? | | #???????????????### r ????????? | | #?????????????????# < ????????? | | ####??????????????# ????????? | | #??????????????# ########## ????????? | | """#???############# ##????????????###?????????? | | """#??## ^ ^ # # ??????????????? | | """#??# "" """ + + ??????????????? | | """#??## ""S " # # """???????????????????? | | #???# "" """ # #?????????????????????????? | | ####???# % ^^ """ # #?????????????????????????? | | ???????# """ # #?????????????????????????? | | ???????# # #?????????????????????????? | | ???????############# #?????????????????????????? | | ??????????????????## ##????????????????????????? | | ################### #????????????????????????? | | + #????????????????????????? | | ""######## T #????????????????????????? | | T"#??????# #????????????????????????? | | "" ""#??#####+#/## #????????????????????????? | | """ #??# ####/#####??????????????????????? | | """ #??# # #??????????????????????? | +----------------------------------------------------+ Best States ------------- Heat Dissipation 28 Energy Generation 15 Energy Capacity 275 Matter Stores 300 Matter Capacity 300 Sight Range 16 Terrain Scan Density 10 Armor Coverage 150 Weapon Shielding 33 Evasion (%) 44 Recoil Reduction 2 Item Schematics ----------------- Sml. Laser | -9/Materials | Scanalyzed Weapon Shielding | -9/Materials | Scanalyzed Imp. Ion Engine | -9/Materials | Scanalyzed Robot Schematics ------------------ None Fabricated ------------ Nothing Alien Tech Used ----------------- None Achievements -------------- Let's See Who's Tougher Part-time Mechanic Challenges ------------ None Game ------ Seed RainbowColdBay Manual? 0 Play Time 00:21:38 Cumulative 3.3 hours Start 2024.04.07 @ 02:13:08 End 2024.04.07 @ 02:33:48 Sessions 1 Manual Loads 0 Difficulty Rogue Special Mode None Game No. 3 Rogue 3 Adventurer 0 Explorer 0 Win Type - Total 0 Types 0/0/0/0/0/0/0/0/0 Lore% 1 Gallery% 11 Achievement% 10 Wizard Run 0 Options --------- Layout 0 ASCII 0 Keyboard 0 Movement Numpad Keybinds 0 Fullscreen 1 Font 18/SmallcapsGlow Map View 76x50 Zoom Use 0% Tactical HUD 0 Map Filters NONE Filters NONE Steam 1 RUN: 083c851f-9db3-4873-84b1-f45ec3484430